bitfinex-derivatives/quotes_BTCF0:USTF0_20250922
["timestamp","ask_amount","ask_price","bid_price","bid_amount"]
[1758562407039,2.09410137,112530.0,112520.0,0.0024]
[1758562407235,2.09410137,112530.0,112520.0,0.02376]
[1758562408337,1.27578137,112530.0,112520.0,0.0024]
[1758562408544,2.09402137,112530.0,112520.0,0.0024]
[1758562408840,2.09386137,112530.0,112520.0,0.0024]
[1758562409040,2.09386137,112530.0,112520.0,0.02376]
[1758562409337,1.27578137,112530.0,112520.0,0.02376]
[1758562409534,2.09366137,112530.0,112520.0,0.02376]
[1758562409742,2.09366137,112530.0,112520.0,0.12561]
[1758562411139,1.27578137,112530.0,112520.0,0.12561]
[1758562411338,2.09362137,112530.0,112520.0,0.12561]
[1758562411937,1.27578137,112530.0,112520.0,0.12561]
[1758562412137,2.09342137,112530.0,112520.0,0.12561]
[1758562412537,2.09342137,112530.0,112520.0,0.03681]
[1758562413543,2.09342137,112530.0,112520.0,0.0024]
[1758562414337,2.04584741,112530.0,112520.0,0.0024]
[1758562415737,2.10916112,112530.0,112520.0,0.0024]
[1758562416244,2.10916112,112530.0,112520.0,0.002]
[1758562416445,2.04584741,112530.0,112520.0,0.0024]
[1758562417846,2.50012927,112530.0,112520.0,0.0024]
[1758562418142,2.50012927,112530.0,112520.0,0.002]
[1758562418339,2.10916112,112530.0,112520.0,0.0024]
[1758562418736,0.1112679,112510.0,112500.0,0.0008]
[1758562418941,1.78523499,112510.0,112500.0,0.0008]
[1758562419149,0.1112758,112500.0,112490.0,0.4839331]
[1758562419447,0.52646418,112500.0,112490.0,0.06431]
[1758562419947,0.52346418,112500.0,112490.0,0.06431]
[1758562420845,0.55216766,112500.0,112490.0,0.06831]
[1758562421047,0.55216766,112500.0,112490.0,0.03831]
[1758562421443,0.55416766,112500.0,112490.0,0.04571]
[1758562421839,0.55416766,112500.0,112490.0,0.03871]
[1758562422040,0.56016766,112500.0,112490.0,0.04071]
[1758562423154,0.56016766,112500.0,112490.0,0.04031]
[1758562423446,0.56116766,112500.0,112490.0,0.03671]
[1758562424151,0.56016766,112500.0,112490.0,0.03671]
[1758562424452,0.52946418,112500.0,112490.0,0.03671]
[1758562424952,0.53460418,112500.0,112490.0,0.0024]
[1758562425252,0.89540418,112500.0,112490.0,0.002]
[1758562425452,0.89540418,112500.0,112490.0,0.0024]
[1758562425649,0.89540418,112500.0,112490.0,0.002]
[1758562425846,0.89540418,112500.0,112490.0,0.0024]
[1758562426151,0.89540418,112500.0,112490.0,0.002]
[1758562426152,1.14540418,112500.0,112490.0,0.002]
[1758562426352,1.96392418,112500.0,112490.0,0.0024]
[1758562427354,1.99562766,112500.0,112490.0,0.0024]
[1758562427647,1.99562766,112500.0,112490.0,0.002]
[1758562427846,1.99562766,112500.0,112490.0,0.0024]
[1758562429050,2.05274018,112500.0,112470.0,0.0008]
[1758562429256,0.1112995,112470.0,112460.0,0.39432333]
[1758562429458,0.95455973,112470.0,112460.0,0.65568333]
[1758562429652,1.34552788,112470.0,112460.0,0.65568333]
[1758562429850,0.52648788,112470.0,112460.0,0.65568333]
[1758562430048,1.34576788,112470.0,112460.0,0.65568333]
[1758562430248,1.34576788,112470.0,112460.0,0.65608333]
[1758562430550,1.35966105,112470.0,112460.0,0.65608333]
[1758562431358,1.36166105,112470.0,112460.0,0.66208333]
[1758562431656,1.36166105,112470.0,112460.0,0.66608333]
[1758562432156,1.36166105,112470.0,112460.0,0.66208333]
[1758562432455,1.36154105,112470.0,112460.0,0.66308333]
[1758562432954,0.9704129,112470.0,112460.0,0.75193073]
[1758562433155,0.9702929,112470.0,112460.0,0.51193073]
[1758562433655,0.9752929,112470.0,112460.0,0.50793073]
[1758562434255,1.04738941,112470.0,112460.0,0.50793073]
[1758562434453,1.04738941,112470.0,112460.0,0.41908333]
[1758562434855,1.04714941,112470.0,112460.0,0.41908333]
[1758562435757,0.22850941,112470.0,112460.0,0.41908333]
[1758562436153,1.04706941,112470.0,112460.0,0.41908333]
[1758562437159,1.04702941,112470.0,112460.0,0.41908333]
[1758562437353,0.22850941,112470.0,112460.0,0.50793083]
[1758562437554,1.04686941,112470.0,112460.0,0.50793083]
[1758562438254,1.04686941,112470.0,112460.0,0.41908333]
[1758562438449,1.43783756,112470.0,112460.0,0.41908333]
[1758562439657,0.61947756,112470.0,112460.0,0.50793083]
[1758562439857,0.22850941,112470.0,112460.0,0.50793083]
[1758562440058,1.04722941,112470.0,112460.0,0.50793083]
[1758562441461,0.22850941,112470.0,112460.0,0.50793083]
[1758562441661,1.04722941,112470.0,112460.0,0.50793083]
[1758562442561,1.43819756,112470.0,112460.0,0.50793083]
[1758562444265,1.43819756,112470.0,112460.0,0.50789083]
[1758562445262,1.43819756,112470.0,112460.0,0.41904333]
[1758562446058,1.79899756,112470.0,112460.0,0.02383333]
[1758562446255,1.83070104,112470.0,112460.0,0.02383333]
[1758562446556,2.08070104,112470.0,112460.0,0.0034]
[1758562446762,2.09897351,112470.0,112460.0,0.003]
[1758562447059,2.14652874,112470.0,112460.0,0.0034]
[1758562447257,2.14644874,112470.0,112460.0,0.003]
[1758562447562,1.89641986,112470.0,112460.0,0.02582]
[1758562448166,1.84886463,112470.0,112460.0,0.02582]
[1758562448467,1.84882463,112470.0,112460.0,0.03887]
[1758562449266,1.84898463,112470.0,112460.0,0.03887]
[1758562450166,0.63925648,112470.0,112460.0,0.03887]
[1758562450363,0.63925648,112470.0,112460.0,0.1277175]
[1758562450558,1.45801648,112470.0,112460.0,0.1277175]
[1758562450761,1.84898463,112470.0,112460.0,0.03887]
[1758562451870,1.84898463,112470.0,112460.0,0.1277175]
[1758562453169,1.89653986,112470.0,112460.0,0.1277175]
[1758562453859,1.48802463,112470.0,112460.0,0.1277175]
[1758562454169,0.27845658,112470.0,112460.0,0.1277175]
[1758562454468,1.00825698,112470.0,112460.0,1.12948565]
[1758562454767,0.18961698,112470.0,112460.0,1.12948565]
[1758562454966,1.00817698,112470.0,112460.0,1.12948565]
[1758562455967,1.09701658,112470.0,112460.0,1.12948565]
[1758562458266,0.16715698,112470.0,112460.0,1.12948565]
[1758562458464,0.13548238,112470.0,112460.0,1.12948565]
[1758562458767,0.16715698,112470.0,112460.0,1.12948565]
[1758562459165,0.13548238,112470.0,112460.0,1.12948565]
[1758562459867,0.24536198,112470.0,112460.0,0.7385175]
[1758562460172,0.24536198,112470.0,112460.0,1.12948565]
[1758562460470,0.24536198,112470.0,112460.0,0.7385175]
[1758562462170,0.63633013,112470.0,112460.0,0.64967]
[1758562462372,0.24536198,112470.0,112460.0,0.64967]
[1758562462563,0.63633013,112470.0,112460.0,0.64967]
[1758562463471,0.63633013,112470.0,112460.0,0.7385175]
[1758562463863,0.63633013,112470.0,112460.0,0.39967]
[1758562464370,0.68388536,112470.0,112460.0,0.39967]
[1758562464569,0.93388536,112470.0,112460.0,0.39967]
[1758562464765,0.93388536,112470.0,112460.0,0.003]
[1758562464964,1.31044384,112470.0,112460.0,0.0034]
[1758562465164,1.31044384,112470.0,112460.0,0.003]
[1758562465776,1.31044384,112470.0,112460.0,0.02524]
[1758562465971,1.31044384,112470.0,112460.0,0.02484]
[1758562466170,1.31044384,112470.0,112460.0,0.0034]
[1758562467280,0.91947569,112470.0,112460.0,0.03802]
[1758562467574,1.31044384,112470.0,112460.0,0.03802]
[1758562467970,1.24713013,112470.0,112460.0,0.03802]
[1758562468779,1.4432212,112470.0,112460.0,0.03802]
[1758562471480,1.31544198,112470.0,112460.0,0.03802]
[1758562471681,1.60897159,112470.0,112460.0,0.03802]
[1758562472582,1.60897159,112470.0,112460.0,0.1268676]
[1758562473282,1.31544198,112470.0,112460.0,0.1268676]
[1758562473478,1.60893159,112470.0,112460.0,0.1268676]
[1758562473978,1.65654177,112470.0,112460.0,0.03802]
[1758562474482,1.64067171,112470.0,112460.0,0.03802]
[1758562474779,1.64067171,112470.0,112460.0,0.1268675]
[1758562475381,1.3471421,112470.0,112460.0,0.1268675]
[1758562475684,1.64067171,112470.0,112460.0,0.1268675]
[1758562476079,1.64067171,112470.0,112460.0,0.03802]
[1758562477280,1.64067171,112470.0,112460.0,0.1268675]
[1758562477489,1.39047171,112470.0,112460.0,0.42039711]
[1758562478384,1.35873159,112470.0,112460.0,0.42039711]
[1758562478584,0.53889159,112470.0,112460.0,0.42039711]
[1758562478778,1.35861159,112470.0,112460.0,0.42039711]
[1758562479683,1.35861159,112470.0,112460.0,0.1268675]
[1758562484483,1.39035171,112470.0,112460.0,0.1268675]
[1758562484884,1.0960621,112470.0,112460.0,0.4876675]
[1758562485084,1.38959171,112470.0,112460.0,0.4876675]
[1758562485285,0.1882625,112470.0,112460.0,0.78119711]
[1758562485487,0.97520238,112470.0,112460.0,1.32472672]
[1758562485689,1.06404208,112470.0,112460.0,1.32472672]
[1758562485989,1.35757169,112470.0,112460.0,1.03119711]
[1758562487085,1.35757169,112470.0,112460.0,0.7376675]
[1758562487781,1.35757169,112470.0,112460.0,0.3768675]
[1758562487984,1.35757169,112470.0,112460.0,0.1268677]
[1758562488189,1.6511013,112470.0,112460.0,0.1264677]
[1758562488490,1.35757169,112470.0,112460.0,0.1268677]
[1758562489489,1.35757169,112470.0,112460.0,0.1264677]
[1758562489689,1.35757169,112470.0,112460.0,0.1268677]
[1758562491389,1.38931181,112470.0,112460.0,0.1268677]
[1758562491990,1.68284142,112470.0,112460.0,0.0034]
[1758562492390,1.38931181,112470.0,112460.0,0.0034]
[1758562492592,1.38931181,112470.0,112460.0,0.0922477]
[1758562492794,1.38931181,112470.0,112460.0,0.1268677]
[1758562493196,1.38931181,112470.0,112460.0,0.03802]
[1758562493389,2.29364142,112470.0,112460.0,0.0034]
[1758562493791,2.29364142,112470.0,112460.0,0.003]
[1758562493988,2.29364142,112470.0,112460.0,0.0034]
[1758562494788,2.3412516,112470.0,112460.0,0.003]
[1758562494989,2.3412516,112470.0,112460.0,0.0034]
[1758562495189,2.55543091,112470.0,112460.0,0.0034]
[1758562495593,1.4432213,112470.0,112460.0,0.0034]
[1758562495792,2.32541501,112470.0,112460.0,0.003]
[1758562495990,1.50653501,112470.0,112460.0,0.0034]
[1758562496192,2.32537501,112470.0,112460.0,0.0034]
[1758562496391,2.2620613,112470.0,112460.0,0.0034]
[1758562497300,2.39606967,112470.0,112460.0,0.0034]
[1758562498397,2.39614967,112470.0,112460.0,0.0034]
[1758562499403,2.4437869,112470.0,112460.0,0.0034]
[1758562500295,2.4435869,112470.0,112460.0,0.0034]
[1758562500603,1.6248669,112470.0,112460.0,0.0034]
[1758562500902,2.4435069,112470.0,112460.0,0.0034]
[1758562501098,1.03780768,112470.0,112460.0,0.0034]
[1758562501402,1.6248669,112470.0,112460.0,0.0034]
[1758562501604,2.4442669,112470.0,112460.0,0.0034]
[1758562501807,2.4444669,112470.0,112460.0,0.0034]
[1758562502503,1.49085853,112470.0,112460.0,0.0034]
[1758562502713,1.76692892,112470.0,112460.0,0.03931]
[1758562503102,1.76692892,112470.0,112460.0,0.0034]
[1758562503302,1.76692892,112470.0,112460.0,0.02594]
[1758562503801,0.94732892,112470.0,112460.0,0.03931]
[1758562504106,1.76752892,112470.0,112460.0,0.03931]
[1758562504406,1.7832054,112470.0,112460.0,0.03931]
[1758562504709,1.7832454,112470.0,112460.0,0.03931]
[1758562504903,1.71993169,112470.0,112460.0,0.03931]
[1758562506012,1.71993169,112470.0,112460.0,0.01677]
[1758562506809,1.71993169,112470.0,112460.0,0.03931]
[1758562507016,1.71993169,112470.0,112460.0,0.0034]
[1758562507207,2.0134613,112470.0,112460.0,0.0034]
[1758562508913,2.30699091,112470.0,112460.0,0.0034]
[1758562509110,2.30699091,112470.0,112460.0,0.003]
[1758562509417,2.0132613,112470.0,112460.0,0.0034]
[1758562510214,2.07657501,112470.0,112460.0,0.0034]
[1758562510816,1.48951579,112470.0,112460.0,0.0034]
[1758562511011,2.07657501,112470.0,112460.0,0.0034]
[1758562511211,2.0132613,112470.0,112460.0,0.0034]
[1758562511411,1.1932213,112470.0,112460.0,0.0034]
[1758562511612,0.60616208,112470.0,112460.0,0.02594]
[1758562511814,1.71937169,112470.0,112460.0,0.03931]
[1758562512006,0.89969169,112470.0,112460.0,0.03931]
[1758562512211,1.71953169,112470.0,112460.0,0.03931]
[1758562512416,2.0130613,112470.0,112460.0,0.03931]
[1758562513310,1.1932213,112470.0,112460.0,0.03931]
[1758562513519,2.0130613,112470.0,112460.0,0.03931]
[1758562513719,2.0129813,112470.0,112460.0,0.03931]
[1758562513908,1.71945169,112470.0,112460.0,0.03931]
[1758562514322,1.79881682,112470.0,112460.0,0.03931]
[1758562514714,1.76707077,112470.0,112460.0,0.03931]
[1758562515019,2.06060038,112470.0,112460.0,0.03931]
[1758562515522,0.94731077,112470.0,112460.0,0.03931]
[1758562515721,1.76719077,112470.0,112460.0,0.03931]
[1758562516721,2.06072038,112470.0,112460.0,0.03931]
[1758562518825,2.06072038,112470.0,112460.0,0.0034]
[1758562519823,2.06081128,112470.0,112460.0,0.0034]
[1758562526617,2.05937128,112470.0,112460.0,0.0034]
[1758562530622,1.86370865,112470.0,112460.0,0.0034]
[1758562531127,1.81608957,112470.0,112460.0,0.0034]
[1758562534332,1.86378522,112470.0,112460.0,0.0034]
[1758562534933,1.47238863,112470.0,112460.0,0.0034]
[1758562535125,1.86378522,112470.0,112460.0,0.0034]
[1758562537532,1.81608957,112470.0,112460.0,0.0034]
[1758562539440,1.42469298,112470.0,112460.0,0.0034]
[1758562539644,1.81608957,112470.0,112460.0,0.0034]
[1758562544741,1.81608957,112470.0,112460.0,0.003]
[1758562544943,1.81608957,112470.0,112460.0,0.0034]
[1758562544944,2.06608957,112470.0,112460.0,0.0034]
[1758562549348,1.24764957,112470.0,112460.0,0.0034]
[1758562549647,2.06600957,112470.0,112460.0,0.0034]
[1758562550848,1.24764957,112470.0,112460.0,0.0034]
[1758562551049,2.06600957,112470.0,112460.0,0.0034]
[1758562553151,2.12932328,112470.0,112460.0,0.0034]
[1758562554249,2.06600957,112470.0,112460.0,0.0034]
[1758562556549,2.12960423,112470.0,112460.0,0.0034]
[1758562556742,1.31124423,112470.0,112460.0,0.0034]
[1758562556942,2.12960423,112470.0,112460.0,0.0034]
[1758562559751,1.31124423,112470.0,112460.0,0.0034]
[1758562559943,2.12960423,112470.0,112460.0,0.0034]
[1758562560447,1.31124423,112470.0,112460.0,0.0034]
[1758562560649,2.12960423,112470.0,112460.0,0.0034]
[1758562560850,1.31124423,112470.0,112460.0,0.0034]
[1758562561146,0.66984764,112470.0,112460.0,0.28953]
[1758562561352,1.87960423,112470.0,112460.0,0.28953]
[1758562561749,0.2043215,112470.0,112460.0,0.76977429]
[1758562561950,1.0016415,112470.0,112460.0,0.76977429]
[1758562562353,0.1832815,112470.0,112460.0,1.13057429]
[1758562562546,0.98572495,112470.0,112460.0,0.7391777]
[1758562562746,0.98572495,112470.0,112460.0,1.13057429]
[1758562563253,1.00876495,112470.0,112460.0,0.7391777]
[1758562563449,1.09760475,112470.0,112460.0,0.7391777]
[1758562564449,1.06581308,112470.0,112460.0,0.7391777]
[1758562564755,1.45720967,112470.0,112460.0,0.40033]
[1758562565247,1.06581308,112470.0,112460.0,0.39993]
[1758562565461,1.45720967,112470.0,112460.0,0.40033]
[1758562565752,1.81800967,112470.0,112460.0,0.03953]
[1758562565958,1.84980134,112470.0,112460.0,0.03953]
[1758562566154,1.84980134,112470.0,112460.0,0.003]
[1758562566345,1.84980134,112470.0,112460.0,0.0034]
[1758562566650,1.89750956,112470.0,112460.0,0.003]
[1758562566845,1.89750956,112470.0,112460.0,0.03953]
[1758562567450,1.84980134,112470.0,112460.0,0.03953]
[1758562567653,1.83152887,112470.0,112460.0,0.03953]
[1758562568253,1.83152887,112470.0,112460.0,0.0034]
[1758562568655,1.84744542,112470.0,112460.0,0.02579]
[1758562568859,1.84744542,112470.0,112460.0,0.0034]
[1758562569057,1.8791952,112470.0,112460.0,0.0034]
[1758562569657,1.83148698,112470.0,112460.0,0.02579]
[1758562569858,1.8791952,112470.0,112460.0,0.0034]
[1758562570058,1.84744542,112470.0,112460.0,0.0034]
[1758562571657,1.02908542,112470.0,112460.0,0.0034]
[1758562571957,1.84768542,112470.0,112460.0,0.02579]
[1758562572158,1.84768542,112470.0,112460.0,0.0034]
[1758562573761,1.84768542,112470.0,112460.0,0.003]
[1758562573961,1.84768542,112470.0,112460.0,0.0034]
[1758562575152,1.02908542,112470.0,112460.0,0.03867]
[1758562575353,1.83149333,112470.0,112460.0,0.03867]
[1758562575852,1.83149333,112470.0,112460.0,0.02579]
[1758562576064,1.01313333,112470.0,112460.0,0.0034]
[1758562576365,1.83149333,112470.0,112460.0,0.0034]
[1758562577463,1.87920155,112470.0,112460.0,0.0034]
[1758562578666,1.84744542,112470.0,112460.0,0.0034]
[1758562582065,1.02908542,112470.0,112460.0,0.0034]
[1758562582262,1.02908542,112470.0,112460.0,0.003]
[1758562582571,1.02908542,112470.0,112460.0,0.0034]
[1758562582773,1.84740542,112470.0,112460.0,0.0034]
[1758562583070,1.02908542,112470.0,112460.0,0.0034]
[1758562583466,1.84740542,112470.0,112460.0,0.0034]
[1758562584372,1.7996972,112470.0,112460.0,0.0034]
[1758562585474,1.84733849,112470.0,112460.0,0.0034]
[1758562585672,1.02901849,112470.0,112460.0,0.0034]
[1758562585865,1.84737849,112470.0,112460.0,0.0034]
[1758562586674,1.02901849,112470.0,112460.0,0.0034]
[1758562586871,1.84741849,112470.0,112460.0,0.0034]
[1758562587761,1.4559419,112470.0,112460.0,0.02647]
[1758562587964,1.84733849,112470.0,112460.0,0.02647]
[1758562589472,1.84733849,112470.0,112460.0,0.0034]
[1758562589672,1.4559419,112470.0,112460.0,0.0034]
[1758562589972,1.84733849,112470.0,112460.0,0.02647]
[1758562590372,1.02901849,112470.0,112460.0,0.02647]
[1758562590673,1.74943338,112470.0,112460.0,0.04019]
[1758562591073,1.38863338,112470.0,112460.0,0.04019]
[1758562591373,1.0951419,112470.0,112460.0,0.04019]
[1758562591574,1.38863338,112470.0,112460.0,0.04019]
[1758562592276,0.57031338,112470.0,112460.0,0.04019]
[1758562592477,1.38863338,112470.0,112460.0,0.04019]
[1758562596277,1.34099209,112470.0,112460.0,0.04019]
[1758562596973,0.57037666,112470.0,112460.0,0.1290379]
[1758562597180,1.38869666,112470.0,112460.0,0.3790379]
[1758562597375,1.38869666,112470.0,112460.0,0.7398379]
[1758562597574,1.09520518,112470.0,112460.0,0.7398379]
[1758562597782,1.38869666,112470.0,112460.0,0.7398379]
[1758562598684,1.42049944,112470.0,112460.0,0.7398379]
[1758562599481,1.42049944,112470.0,112460.0,0.4898379]
[1758562600685,1.42049944,112470.0,112460.0,0.7398379]
[1758562602581,0.21984816,112470.0,112460.0,1.03332938]
[1758562602883,0.93562081,112470.0,112460.0,1.32682086]
[1758562603283,0.93562081,112470.0,112460.0,1.03332938]
[1758562604173,0.93562081,112470.0,112460.0,1.32682086]
[1758562604378,0.96742359,112470.0,112460.0,1.32682086]
[1758562605378,0.96742359,112470.0,112460.0,1.03332938]
[1758562606289,0.96742359,112470.0,112460.0,1.32682086]
[1758562606585,0.14910359,112470.0,112460.0,1.66682086]
[1758562607379,0.10340764,112470.0,112460.0,1.66682086]
[1758562607584,0.03131113,112470.0,112460.0,2.48510086]
[1758562608588,0.03131113,112470.0,112460.0,1.66682086]
[1758562608796,0.03131113,112470.0,112460.0,2.48506086]
[1758562608988,0.03131113,112470.0,112460.0,1.0798379]
[1758562609191,0.03131113,112470.0,112460.0,1.66682086]
[1758562609889,0.03131113,112470.0,112460.0,2.48506086]
[1758562610684,0.03131113,112470.0,112460.0,1.66682086]
[1758562610890,0.03131113,112470.0,112460.0,2.48506086]
[1758562612087,0.03131113,112470.0,112460.0,2.77855234]
[1758562612390,0.03131113,112470.0,112460.0,2.77967234]
[1758562612690,0.85004278,112490.0,112480.0,0.125622]
[1758562612894,0.85004278,112490.0,112480.0,1.14071348]
[1758562613191,0.86109692,112490.0,112480.0,1.43420496]
[1758562613490,0.82929414,112490.0,112480.0,1.43420496]
[1758562613992,0.82929414,112490.0,112480.0,1.14071348]
[1758562614188,0.84329414,112490.0,112480.0,1.14371348]
[1758562614392,0.84529414,112490.0,112480.0,1.14371348]
[1758562615096,0.91646835,112490.0,112480.0,1.14371348]
[1758562615291,1.20995983,112490.0,112480.0,1.14371348]
[1758562615492,0.91646835,112490.0,112480.0,1.14371348]
[1758562617291,0.93925835,112490.0,112480.0,0.850222]
[1758562617693,0.93925835,112490.0,112480.0,1.14371348]
[1758562618193,1.23274983,112490.0,112480.0,1.14371348]
[1758562618694,0.91646835,112490.0,112480.0,1.14371348]
[1758562618993,1.20995983,112490.0,112480.0,1.14371348]
[1758562619496,0.39171983,112490.0,112480.0,1.14371348]
[1758562619693,0.09822835,112490.0,112480.0,1.14371348]
[1758562619894,0.39171983,112490.0,112480.0,1.14371348]
[1758562621594,0.41450983,112490.0,112480.0,1.14371348]
[1758562621798,0.12101835,112490.0,112480.0,1.14371348]
[1758562621998,0.41450983,112490.0,112480.0,1.14371348]
[1758562622499,0.016,112490.0,112480.0,1.99720496]
[1758562622695,0.0697648,112500.0,112490.0,0.0888241]
[1758562622896,0.39347911,112520.0,112510.0,0.1257783]
[1758562623100,0.87299811,112520.0,112510.0,0.78006978]
[1758562623302,1.16648959,112520.0,112510.0,0.78006978]
[1758562623493,1.25528999,112520.0,112510.0,0.78006978]
[1758562624393,1.27728999,112520.0,112510.0,0.78306978]
[1758562624590,1.30147409,112520.0,112510.0,0.78306978]
[1758562625694,1.30347409,112520.0,112510.0,0.78306978]
[1758562626390,0.98898261,112520.0,112510.0,0.4935783]
[1758562626590,1.35292603,112520.0,112510.0,0.4935783]
[1758562626793,1.35292603,112520.0,112510.0,0.40477]
[1758562626794,1.64641751,112520.0,112510.0,0.40477]
[1758562626990,1.64641751,112520.0,112510.0,0.4935783]
[1758562628101,1.64641751,112520.0,112510.0,0.40477]
[1758562628301,1.67822029,112520.0,112510.0,0.40477]
[1758562628494,1.67822029,112520.0,112510.0,0.4935783]
[1758562628690,1.64641751,112520.0,112510.0,0.4935783]
[1758562629901,1.64641751,112520.0,112510.0,0.40477]
[1758562630603,1.05943455,112520.0,112510.0,0.40477]
[1758562630803,1.64641751,112520.0,112510.0,0.40477]
[1758562631399,1.67822029,112520.0,112510.0,0.40477]
[1758562631599,1.09123733,112520.0,112510.0,0.40477]
[1758562631805,1.67822029,112520.0,112510.0,0.40477]
[1758562632706,1.09123733,112520.0,112510.0,0.40477]
[1758562632903,1.67822029,112520.0,112510.0,0.40477]
[1758562633703,0.85762029,112520.0,112510.0,0.40477]
[1758562634004,1.67906029,112520.0,112510.0,0.40477]
[1758562634205,1.09207733,112520.0,112510.0,0.69826148]
[1758562634399,1.67906029,112520.0,112510.0,0.40477]
[1758562634801,1.09207733,112520.0,112510.0,0.40477]
[1758562635006,1.67906029,112520.0,112510.0,0.40477]
[1758562635707,1.09207733,112520.0,112510.0,0.40477]
[1758562635900,1.67906029,112520.0,112510.0,0.40477]
[1758562637006,1.09207733,112520.0,112510.0,0.40477]
[1758562637306,1.67906029,112520.0,112510.0,0.40477]
[1758562637704,1.69496208,112520.0,112510.0,0.40477]
[1758562638301,1.4014706,112520.0,112510.0,0.40477]
[1758562638502,0.90525824,112520.0,112510.0,0.40477]
[1758562638707,1.72661824,112520.0,112510.0,0.4935783]
[1758562639103,1.72661824,112520.0,112510.0,0.40477]
[1758562639309,1.69488208,112520.0,112510.0,0.40477]
[1758562641511,1.10789912,112520.0,112510.0,0.40477]
[1758562641711,1.69488208,112520.0,112510.0,0.40477]
[1758562642112,1.10789912,112520.0,112510.0,0.40477]
[1758562642315,1.69488208,112520.0,112510.0,0.40477]
[1758562643714,1.60608168,112520.0,112510.0,0.4935783]
[1758562644026,0.78472168,112520.0,112510.0,0.4935783]
[1758562644222,1.01857872,112520.0,112510.0,0.4935783]
[1758562644437,0.17946317,112520.0,112510.0,0.78706978]
[1758562644621,1.29395465,112520.0,112510.0,0.78706978]
[1758562645230,1.29399465,112520.0,112510.0,0.78706978]
[1758562648530,1.24629008,112520.0,112510.0,0.78706978]
[1758562648729,1.24629008,112520.0,112510.0,0.4935783]
[1758562648930,1.24629008,112520.0,112510.0,0.78706978]
[1758562649224,0.9527986,112520.0,112510.0,0.78706978]
[1758562649430,1.24629008,112520.0,112510.0,0.78706978]
[1758562649830,1.24569008,112520.0,112510.0,0.78706978]
[1758562650031,1.24557008,112520.0,112510.0,0.78706978]
[1758562650233,0.14534862,112520.0,112510.0,2.15088126]
[1758562650432,0.12944739,112520.0,112510.0,2.80168126]
[1758562650635,0.05899545,112520.0,112510.0,2.60547725]
[1758562651333,0.0271841,112520.0,112510.0,2.60547725]
[1758562651735,0.03481135,112520.0,112510.0,1.78515725]
[1758562651934,0.03481135,112520.0,112510.0,2.60587725]
[1758562652528,0.03481135,112520.0,112510.0,2.2150983]
[1758562652830,0.05899545,112520.0,112510.0,2.60655725]
[1758562653331,0.0271841,112520.0,112510.0,2.60655725]
[1758562653537,0.003,112520.0,112510.0,2.60655725]
[1758562653837,0.02725278,112520.0,112510.0,2.60655725]
[1758562654037,0.02725278,112520.0,112510.0,2.2157783]
[1758562654227,0.02725278,112520.0,112510.0,2.61813946]
[1758562656533,0.02725278,112520.0,112510.0,2.22736051]
[1758562656736,0.02725278,112520.0,112510.0,2.61813946]
[1758562658329,0.003,112520.0,112510.0,2.61813946]
[1758562659538,0.003,112520.0,112510.0,2.36813946]
[1758562662126,0.46139594,112540.0,112510.0,2.36813946]
[1758562662127,0.45500279,112550.0,112540.0,0.0887846]
[1758562662330,0.47887783,112550.0,112540.0,0.4854446]
[1758562662940,0.05668753,112550.0,112540.0,0.4854446]
[1758562663135,0.03523753,112550.0,112540.0,0.87622355]
[1758562663332,0.03563753,112550.0,112540.0,0.87622355]
[1758562663636,0.05463753,112550.0,112540.0,0.87822355]
[1758562663832,0.46646648,112550.0,112540.0,0.4874446]
[1758562664037,0.53638117,112550.0,112540.0,0.4874446]
[1758562664341,0.53038117,112550.0,112540.0,0.4874446]
[1758562664836,0.04863753,112550.0,112540.0,0.7474446]
[1758562665440,0.04863753,112550.0,112540.0,0.7454446]
[1758562665441,0.03563753,112550.0,112540.0,0.7454446]
[1758562665640,0.04632504,112550.0,112540.0,0.7454446]
[1758562665842,0.02527504,112550.0,112540.0,0.7454446]
[1758562666141,0.05653942,112550.0,112540.0,0.7454446]
[1758562666342,0.03548942,112550.0,112540.0,0.7454446]
[1758562666944,0.03588942,112550.0,112540.0,0.7454446]
[1758562667135,0.05693942,112550.0,112540.0,0.7454446]
[1758562667335,0.05693942,112550.0,112540.0,1.5802846]
[1758562667548,0.05693942,112550.0,112540.0,0.7454446]
[1758562667936,0.05693942,112550.0,112540.0,1.5803246]
[1758562669039,0.53649507,112550.0,112540.0,0.4854446]
[1758562669247,0.53649507,112550.0,112540.0,1.3303246]
[1758562669552,0.53649507,112550.0,112540.0,0.4854446]
[1758562670744,0.78649507,112550.0,112540.0,0.4854446]
[1758562671144,0.78649507,112550.0,112540.0,0.4858446]
[1758562673550,0.78609507,112550.0,112540.0,0.4854446]
[1758562674050,0.80533483,112550.0,112540.0,0.4890446]
[1758562675350,0.41455588,112550.0,112540.0,0.4890446]
[1758562675650,0.80533483,112550.0,112540.0,0.4890446]
[1758562676756,0.80533483,112550.0,112540.0,0.1282446]
[1758562677251,0.83714618,112550.0,112540.0,0.1286446]
[1758562678254,1.19794618,112550.0,112540.0,0.004]
[1758562679054,1.19794618,112550.0,112540.0,0.02617]
[1758562679450,2.03094618,112550.0,112540.0,0.02617]
[1758562680456,2.03094618,112550.0,112540.0,0.004]
[1758562680955,2.07865876,112550.0,112540.0,0.0036]
[1758562681149,2.03094618,112550.0,112540.0,0.004]
[1758562681949,2.04684741,112550.0,112540.0,0.004]
[1758562682757,2.04684741,112550.0,112540.0,0.0036]
[1758562683256,2.04684741,112550.0,112540.0,0.004]
[1758562683758,2.04668741,112550.0,112540.0,0.004]
[1758562683956,2.04636741,112550.0,112540.0,0.004]
[1758562684860,2.04624741,112550.0,112540.0,0.004]
[1758562685660,2.04608741,112550.0,112540.0,0.02617]
[1758562686161,2.04608741,112550.0,112540.0,0.004]
[1758562686749,1.21384741,112550.0,112540.0,0.004]
[1758562686961,2.04608741,112550.0,112540.0,0.004]
[1758562687554,2.04632741,112550.0,112540.0,0.004]
[1758562688065,1.65554846,112550.0,112540.0,0.03964]
[1758562688365,1.79672741,112550.0,112540.0,0.03964]
[1758562688554,1.83883736,112550.0,112540.0,0.03964]
[1758562688958,1.47803736,112550.0,112540.0,0.03964]
[1758562689158,1.43020478,112550.0,112540.0,0.03964]
[1758562689370,1.43016566,112550.0,112540.0,0.03964]
[1758562689759,1.43056566,112550.0,112540.0,0.03964]
[1758562690372,1.43056566,112550.0,112540.0,0.1284257]
[1758562691671,0.58748566,112550.0,112540.0,0.1284257]
[1758562691873,1.42980566,112550.0,112540.0,0.1284257]
[1758562692779,0.58748566,112550.0,112540.0,0.1284257]
[1758562693277,1.42928566,112550.0,112540.0,0.1284257]
[1758562693879,1.42928566,112550.0,112540.0,0.03964]